[Event "*** Titled Tuesday Blitz"]
[Site "Chess.com"]
[Date "2021.02.09"]
[Round "4"]
[White "albi1999"]
[Black "boasovietica"]
[Result "1-0"]
[WhiteElo "2626"]
[BlackElo "2467"]
[TimeControl "180+1"]
[EndTime "10:41:29 PST"]
[Termination "albi1999 won on time"]

1. d4 {[%clk 0:02:37.9]} 1... Nf6 {[%clk 0:02:59.4]} 2. c4 {[%clk 0:02:28.8]}
2... e6 {[%clk 0:02:58.8]} 3. Nc3 {[%clk 0:02:22.1]} 3... d5 {[%clk 0:02:58.7]}
4. cxd5 {[%clk 0:02:20.9]} 4... exd5 {[%clk 0:02:58.5]} 5. Bg5 {[%clk
0:02:20.3]} 5... Nbd7 {[%clk 0:02:58.4]} 6. e3 {[%clk 0:02:20.6]} 6... Be7
{[%clk 0:02:57.2]} 7. Qc2 {[%clk 0:02:20]} 7... c6 {[%clk 0:02:56.1]} 8. Bd3
{[%clk 0:02:13.1]} 8... Nh5 {[%clk 0:02:53.3]} 9. Bxe7 {[%clk 0:02:11.8]} 9...
Qxe7 {[%clk 0:02:54.2]} 10. Nge2 {[%clk 0:02:11.5]} 10... g6 {[%clk 0:02:53.2]}
11. O-O {[%clk 0:02:08.2]} 11... O-O {[%clk 0:02:52.4]} 12. Rab1 {[%clk
0:02:07.5]} 12... Nb6 {[%clk 0:02:51.5]} 13. b4 {[%clk 0:01:53.2]} 13... a6
{[%clk 0:02:51.2]} 14. a4 {[%clk 0:01:46.4]} 14... Nf6 {[%clk 0:02:45.1]} 15. b5
{[%clk 0:01:44.4]} 15... axb5 {[%clk 0:02:44.6]} 16. axb5 {[%clk 0:01:45.3]}
16... c5 {[%clk 0:02:44.9]} 17. dxc5 {[%clk 0:01:44.1]} 17... Qxc5 {[%clk
0:02:44.9]} 18. Rfc1 {[%clk 0:01:41]} 18... Bd7 {[%clk 0:02:38.4]} 19. Qb2
{[%clk 0:01:29.3]} 19... Qa3 {[%clk 0:02:03.7]} 20. Qd2 {[%clk 0:01:12.9]} 20...
Rfc8 {[%clk 0:01:57.9]} 21. Nd4 {[%clk 0:01:00.4]} 21... Qd6 {[%clk 0:01:35.4]}
22. Nce2 {[%clk 0:00:57.6]} 22... Rxc1+ {[%clk 0:01:32.3]} 23. Rxc1 {[%clk
0:00:57.9]} 23... Rc8 {[%clk 0:01:31.1]} 24. Rxc8+ {[%clk 0:00:57.8]} 24... Bxc8
{[%clk 0:01:30.9]} 25. Qa5 {[%clk 0:00:54.8]} 25... Ng4 {[%clk 0:01:11.8]} 26.
Ng3 {[%clk 0:00:53.6]} 26... h5 {[%clk 0:01:08.1]} 27. Nf1 {[%clk 0:00:43.3]}
27... Ne5 {[%clk 0:01:05.7]} 28. Be2 {[%clk 0:00:42.1]} 28... Bd7 {[%clk
0:00:58.2]} 29. Qc3 {[%clk 0:00:38.8]} 29... Na4 {[%clk 0:00:45.2]} 30. Qc2
{[%clk 0:00:34.5]} 30... Nc5 {[%clk 0:00:41.8]} 31. h3 {[%clk 0:00:31.8]} 31...
Ne4 {[%clk 0:00:41.2]} 32. f3 {[%clk 0:00:28.1]} 32... Nc5 {[%clk 0:00:32.4]}
33. Nd2 {[%clk 0:00:28]} 33... Ne6 {[%clk 0:00:31]} 34. N2b3 {[%clk 0:00:25.9]}
34... Qb4 {[%clk 0:00:16.7]} 35. Kf2 {[%clk 0:00:23.9]} 35... h4 {[%clk
0:00:15.9]} 36. Nxe6 {[%clk 0:00:20.9]} 36... Bxe6 {[%clk 0:00:15.3]} 37. Nd4
{[%clk 0:00:19.2]} 37... Qd6 {[%clk 0:00:13.7]} 38. Qc3 {[%clk 0:00:18.2]} 38...
Nd7 {[%clk 0:00:11.4]} 39. Qc8+ {[%clk 0:00:17.5]} 39... Kg7 {[%clk 0:00:11]}
40. Qxb7 {[%clk 0:00:17.7]} 40... Qg3+ {[%clk 0:00:10.8]} 41. Kf1 {[%clk
0:00:16.4]} 41... Bxh3 {[%clk 0:00:07.9]} 42. gxh3 {[%clk 0:00:15.7]} 42... Ne5
{[%clk 0:00:08]} 43. Qxd5 {[%clk 0:00:14.1]} 43... Qxh3+ {[%clk 0:00:07.7]} 44.
Ke1 {[%clk 0:00:14.3]} 44... Qg3+ {[%clk 0:00:08.3]} 45. Kd2 {[%clk 0:00:14.3]}
45... h3 {[%clk 0:00:09.1]} 46. f4 {[%clk 0:00:14.6]} 46... Ng4 {[%clk
0:00:08.7]} 47. Bxg4 {[%clk 0:00:14.8]} 47... Qxg4 {[%clk 0:00:08.3]} 48. Qf3
{[%clk 0:00:14.9]} 48... Qh4 {[%clk 0:00:06.5]} 49. Ne2 {[%clk 0:00:12.4]} 49...
h2 {[%clk 0:00:06.6]} 50. Qh1 {[%clk 0:00:12.7]} 50... Qh3 {[%clk 0:00:06]} 51.
b6 {[%clk 0:00:12.2]} 51... Qd7+ {[%clk 0:00:06.1]} 52. Ke1 {[%clk 0:00:11.9]}
52... Qh3 {[%clk 0:00:05.4]} 53. b7 {[%clk 0:00:12.1]} 53... Qh4+ {[%clk
0:00:05.8]} 54. Kd2 {[%clk 0:00:12]} 54... Qd8+ {[%clk 0:00:06]} 55. Nd4 {[%clk
0:00:12.6]} 55... Qa5+ {[%clk 0:00:04.3]} 56. Ke2 {[%clk 0:00:12.3]} 56... Qa2+
{[%clk 0:00:03.5]} 57. Kf1 {[%clk 0:00:10.7]} 57... Qb1+ {[%clk 0:00:03.2]} 58.
Kg2 {[%clk 0:00:11]} 58... Qxb7+ {[%clk 0:00:02.8]} 59. Kxh2 {[%clk 0:00:11.1]}
59... Qb2+ {[%clk 0:00:03.5]} 60. Qg2 {[%clk 0:00:11.1]} 60... Qc3 {[%clk
0:00:04.1]} 61. Qf2 {[%clk 0:00:11.5]} 61... Qc1 {[%clk 0:00:04.3]} 62. Nf3
{[%clk 0:00:11.6]} 62... Qc3 {[%clk 0:00:03.9]} 63. Qd2 {[%clk 0:00:11.7]} 63...
Qc6 {[%clk 0:00:03.8]} 64. Qd4+ {[%clk 0:00:11.8]} 64... Kg8 {[%clk 0:00:04.4]}
65. Kg3 {[%clk 0:00:12.2]} 65... Qc2 {[%clk 0:00:04.4]} 66. Qd8+ {[%clk
0:00:11.9]} 66... Kg7 {[%clk 0:00:04.5]} 67. Qd4+ {[%clk 0:00:11.6]} 67... Kg8
{[%clk 0:00:04.6]} 68. Qe5 {[%clk 0:00:12]} 68... Qd1 {[%clk 0:00:04.5]} 69. f5
{[%clk 0:00:12.2]} 69... gxf5 {[%clk 0:00:04.5]} 70. Qxf5 {[%clk 0:00:12.1]}
70... Qf1 {[%clk 0:00:05.2]} 71. Qg5+ {[%clk 0:00:11.6]} 71... Kf8 {[%clk
0:00:05.6]} 72. Qh6+ {[%clk 0:00:11.2]} 72... Ke8 {[%clk 0:00:05.6]} 73. Qf4
{[%clk 0:00:11.3]} 73... Qd1 {[%clk 0:00:04.9]} 74. Ng5 {[%clk 0:00:11.2]} 74...
Qg1+ {[%clk 0:00:04.9]} 75. Kh4 {[%clk 0:00:11.6]} 75... Qh1+ {[%clk 0:00:04]}
76. Kg4 {[%clk 0:00:12.2]} 76... Qd5 {[%clk 0:00:04.2]} 77. Qe4+ {[%clk
0:00:11.7]} 77... Qxe4+ {[%clk 0:00:04.3]} 78. Nxe4 {[%clk 0:00:12.6]} 78... Ke7
{[%clk 0:00:04.8]} 79. Kf5 {[%clk 0:00:13.5]} 79... Ke8 {[%clk 0:00:01.3]} 80.
Kf6 {[%clk 0:00:14.4]} 80... Kf8 {[%clk 0:00:01.7]} 81. Ng5 {[%clk 0:00:15.3]}
81... Ke8 {[%clk 0:00:02.3]} 82. e4 {[%clk 0:00:15.8]} 1-0

[Event "*** Titled Tuesday Blitz"]
[Site "Chess.com"]
[Date "2021.02.09"]
[Round "4"]
[White "ViktoriyaTarasova"]
[Black "MFBerna"]
[Result "1/2-1/2"]
[WhiteElo "2312"]
[BlackElo "2513"]
[TimeControl "180+1"]
[EndTime "10:41:48 PST"]
[Termination "Game drawn - insufficient material"]

1. d4 {[%clk 0:03:00.9]} 1... d5 {[%clk 0:03:00.2]} 2. c4 {[%clk 0:03:00.1]}
2... dxc4 {[%clk 0:03:00]} 3. e4 {[%clk 0:02:57.5]} 3... e5 {[%clk 0:02:57.5]}
4. Nf3 {[%clk 0:02:56.4]} 4... Nf6 {[%clk 0:02:57.4]} 5. Nc3 {[%clk 0:02:51.8]}
5... exd4 {[%clk 0:02:57.4]} 6. Qxd4 {[%clk 0:02:50.7]} 6... Qxd4 {[%clk
0:02:56]} 7. Nxd4 {[%clk 0:02:51.3]} 7... Bb4 {[%clk 0:02:55]} 8. f3 {[%clk
0:02:47]} 8... O-O {[%clk 0:02:40.2]} 9. Bxc4 {[%clk 0:02:38.5]} 9... Nbd7
{[%clk 0:02:39.4]} 10. Be3 {[%clk 0:02:34.4]} 10... Nb6 {[%clk 0:02:33.4]} 11.
Be2 {[%clk 0:02:34.1]} 11... Re8 {[%clk 0:02:29]} 12. O-O {[%clk 0:02:32.9]}
12... c6 {[%clk 0:02:20.9]} 13. Rac1 {[%clk 0:02:26.6]} 13... Bd7 {[%clk
0:02:15.2]} 14. Rfd1 {[%clk 0:02:26.4]} 14... Rad8 {[%clk 0:02:14]} 15. Nb3
{[%clk 0:02:25.6]} 15... Be6 {[%clk 0:02:08.6]} 16. Nd4 {[%clk 0:02:10.4]} 16...
Bc8 {[%clk 0:02:01.3]} 17. a3 {[%clk 0:02:09]} 17... Bf8 {[%clk 0:01:57.9]} 18.
Nb3 {[%clk 0:02:06]} 18... h6 {[%clk 0:01:45.4]} 19. Nc5 {[%clk 0:02:01]} 19...
Nh5 {[%clk 0:01:26.1]} 20. g3 {[%clk 0:01:53]} 20... Nf6 {[%clk 0:01:24.6]} 21.
Bf2 {[%clk 0:01:50.6]} 21... g6 {[%clk 0:01:17.8]} 22. a4 {[%clk 0:01:49.9]}
22... Bg7 {[%clk 0:01:15]} 23. a5 {[%clk 0:01:49.4]} 23... Na8 {[%clk
0:01:14.7]} 24. Rxd8 {[%clk 0:01:42.4]} 24... Rxd8 {[%clk 0:01:15.6]} 25. Rd1
{[%clk 0:01:42.7]} 25... Rxd1+ {[%clk 0:01:15.6]} 26. Bxd1 {[%clk 0:01:42.2]}
26... Nc7 {[%clk 0:01:15.5]} 27. N5a4 {[%clk 0:01:32.8]} 27... a6 {[%clk
0:01:13.2]} 28. Bb3 {[%clk 0:01:25.8]} 28... Be6 {[%clk 0:01:08.4]} 29. Bxe6
{[%clk 0:01:16.5]} 29... Nxe6 {[%clk 0:01:09.3]} 30. Kf1 {[%clk 0:01:17]} 30...
Nd7 {[%clk 0:00:52.3]} 31. Ke2 {[%clk 0:01:14]} 31... Kf8 {[%clk 0:00:50.2]} 32.
Kd3 {[%clk 0:01:13.7]} 32... Ke7 {[%clk 0:00:47.6]} 33. h4 {[%clk 0:01:08.9]}
33... h5 {[%clk 0:00:41]} 34. Kc4 {[%clk 0:01:08.6]} 34... Ne5+ {[%clk
0:00:40.4]} 35. Kb3 {[%clk 0:01:05.6]} 35... Nxf3 {[%clk 0:00:41.3]} 36. Nc5
{[%clk 0:01:06]} 36... Nxc5+ {[%clk 0:00:40.2]} 37. Bxc5+ {[%clk 0:01:06.1]}
37... Kd7 {[%clk 0:00:36.1]} 38. Kc2 {[%clk 0:01:01.7]} 38... Be5 {[%clk
0:00:28.5]} 39. Bf2 {[%clk 0:01:00.3]} 39... g5 {[%clk 0:00:19.2]} 40. Kd3
{[%clk 0:00:56.3]} 40... gxh4 {[%clk 0:00:15.4]} 41. gxh4 {[%clk 0:00:56.4]}
41... Bf6 {[%clk 0:00:14.5]} 42. Na4 {[%clk 0:00:47.9]} 42... Bxh4 {[%clk
0:00:12.2]} 43. Nc5+ {[%clk 0:00:48.6]} 43... Kc7 {[%clk 0:00:12.5]} 44. Be3
{[%clk 0:00:47.8]} 44... Be7 {[%clk 0:00:11.7]} 45. Bf4+ {[%clk 0:00:46.6]}
45... Kc8 {[%clk 0:00:10.7]} 46. Nb3 {[%clk 0:00:45.3]} 46... h4 {[%clk
0:00:10.2]} 47. Ke3 {[%clk 0:00:46.1]} 47... Ne1 {[%clk 0:00:08.8]} 48. Ke2
{[%clk 0:00:36.3]} 48... Nc2 {[%clk 0:00:06.6]} 49. Kf3 {[%clk 0:00:34.2]} 49...
Nb4 {[%clk 0:00:05.3]} 50. Nd4 {[%clk 0:00:28]} 50... Nd3 {[%clk 0:00:04.6]} 51.
Bh2 {[%clk 0:00:27]} 51... Nxb2 {[%clk 0:00:04.9]} 52. Nf5 {[%clk 0:00:27.5]}
52... Bd8 {[%clk 0:00:04.9]} 53. Nd6+ {[%clk 0:00:26.6]} 53... Kd7 {[%clk
0:00:05.5]} 54. Nxb7 {[%clk 0:00:26.5]} 54... Na4 {[%clk 0:00:05.6]} 55. Kg4
{[%clk 0:00:24.7]} 55... Bc7 {[%clk 0:00:04.4]} 56. e5 {[%clk 0:00:24]} 56...
Kc8 {[%clk 0:00:04.2]} 57. Nd6+ {[%clk 0:00:23.4]} 57... Bxd6 {[%clk 0:00:04.6]}
58. exd6 {[%clk 0:00:22.6]} 58... Kd7 {[%clk 0:00:05.3]} 59. Kxh4 {[%clk
0:00:23]} 59... Nc5 {[%clk 0:00:05.4]} 60. Kg5 {[%clk 0:00:19.9]} 60... Nb7
{[%clk 0:00:06.3]} 61. Kf6 {[%clk 0:00:20.6]} 61... Nxd6 {[%clk 0:00:06.7]} 62.
Ke5 {[%clk 0:00:19.4]} 62... Nc4+ {[%clk 0:00:06.3]} 63. Kd4 {[%clk 0:00:20]}
63... Nxa5 {[%clk 0:00:06.5]} 64. Kc5 {[%clk 0:00:20.7]} 64... Nb7+ {[%clk
0:00:07]} 65. Kb6 {[%clk 0:00:20.6]} 65... Nd6 {[%clk 0:00:05.8]} 66. Kxa6
{[%clk 0:00:20.7]} 66... f5 {[%clk 0:00:03.6]} 67. Kb6 {[%clk 0:00:21]} 67...
Nc4+ {[%clk 0:00:03.9]} 68. Kc5 {[%clk 0:00:20.9]} 68... Nd2 {[%clk 0:00:04.4]}
69. Bf4 {[%clk 0:00:17.1]} 69... Ne4+ {[%clk 0:00:04.5]} 70. Kd4 {[%clk
0:00:17.6]} 70... Ke6 {[%clk 0:00:04.9]} 71. Bh2 {[%clk 0:00:16.9]} 71... c5+
{[%clk 0:00:04.9]} 72. Kc4 {[%clk 0:00:17.3]} 72... Kd7 {[%clk 0:00:02.7]} 73.
Kd5 {[%clk 0:00:15.5]} 73... Ke7 {[%clk 0:00:02.7]} 74. Ke5 {[%clk 0:00:15.7]}
74... Nd6 {[%clk 0:00:03.2]} 75. Bf4 {[%clk 0:00:14.6]} 75... c4 {[%clk
0:00:03]} 76. Kd4 {[%clk 0:00:14.1]} 76... Ke6 {[%clk 0:00:03.1]} 77. Bh2 {[%clk
0:00:12.7]} 77... Kd7 {[%clk 0:00:02.9]} 78. Kd5 {[%clk 0:00:11.3]} 78... c3
{[%clk 0:00:02.9]} 79. Bf4 {[%clk 0:00:10.2]} 79... c2 {[%clk 0:00:02.9]} 80.
Kd4 {[%clk 0:00:09.6]} 80... Ne4 {[%clk 0:00:02.6]} 81. Kd3 {[%clk 0:00:09.5]}
81... Nf2+ {[%clk 0:00:01.8]} 82. Kxc2 {[%clk 0:00:09.5]} 82... Ne4 {[%clk
0:00:02.5]} 83. Kd3 {[%clk 0:00:09.4]} 83... Ke6 {[%clk 0:00:03.4]} 84. Ke3
{[%clk 0:00:09.5]} 84... Nf6 {[%clk 0:00:04.3]} 85. Kf3 {[%clk 0:00:09.6]} 85...
Kd5 {[%clk 0:00:04.8]} 86. Bh2 {[%clk 0:00:09.8]} 86... Ke6 {[%clk 0:00:04.5]}
87. Bf4 {[%clk 0:00:10.1]} 87... Ng4 {[%clk 0:00:04.3]} 88. Bh2 {[%clk
0:00:10.4]} 88... Kf6 {[%clk 0:00:04.7]} 89. Bf4 {[%clk 0:00:10.3]} 89... Kg6
{[%clk 0:00:03.4]} 90. Bg3 {[%clk 0:00:10.1]} 90... Nf6 {[%clk 0:00:04]} 91. Bf4
{[%clk 0:00:10.3]} 91... Nd5 {[%clk 0:00:03.8]} 92. Bb8 {[%clk 0:00:10.1]} 92...
Kg5 {[%clk 0:00:03.8]} 93. Be5 {[%clk 0:00:09.7]} 93... f4 {[%clk 0:00:03]} 94.
Bxf4+ {[%clk 0:00:09.7]} 1/2-1/2

[Event "*** Titled Tuesday Blitz"]
[Site "Chess.com"]
[Date "2021.02.09"]
[Round "4"]
[White "champ2005"]
[Black "Vanina1989"]
[Result "0-1"]
[WhiteElo "3002"]
[BlackElo "2717"]
[TimeControl "180+1"]
[EndTime "10:42:07 PST"]
[Termination "Vanina1989 won on time"]

1. d4 {[%clk 0:03:00.9]} 1... d5 {[%clk 0:02:59.5]} 2. Bf4 {[%clk 0:03:01.5]}
2... Nf6 {[%clk 0:02:59.1]} 3. e3 {[%clk 0:03:01.7]} 3... c5 {[%clk 0:02:59.5]}
4. Nf3 {[%clk 0:03:01.4]} 4... Nc6 {[%clk 0:02:59.8]} 5. Nbd2 {[%clk 0:03:01.9]}
5... e6 {[%clk 0:02:57.4]} 6. c3 {[%clk 0:02:59.4]} 6... Nh5 {[%clk 0:02:57.3]}
7. Be5 {[%clk 0:02:57]} 7... f6 {[%clk 0:02:48.7]} 8. Bg3 {[%clk 0:02:56.3]}
8... Nxg3 {[%clk 0:02:46.3]} 9. hxg3 {[%clk 0:02:57.2]} 9... Bd6 {[%clk
0:02:46.3]} 10. Bd3 {[%clk 0:02:57.4]} 10... f5 {[%clk 0:02:42.2]} 11. g4 {[%clk
0:02:43]} 11... fxg4 {[%clk 0:02:40.7]} 12. Ng1 {[%clk 0:02:39.7]} 12... Qg5
{[%clk 0:02:29.3]} 13. Ne2 {[%clk 0:02:28.7]} 13... Bd7 {[%clk 0:02:25]} 14.
dxc5 {[%clk 0:01:51]} 14... Bxc5 {[%clk 0:02:24.6]} 15. Nf4 {[%clk 0:01:49.8]}
15... O-O-O {[%clk 0:02:21.2]} 16. Rh5 {[%clk 0:01:49.4]} 16... Qf6 {[%clk
0:02:16]} 17. Qxg4 {[%clk 0:01:28.4]} 17... e5 {[%clk 0:02:08.5]} 18. Rf5 {[%clk
0:01:28.9]} 18... exf4 {[%clk 0:02:03.9]} 19. Rxf6 {[%clk 0:01:23.3]} 19... Bxg4
{[%clk 0:02:02.8]} 20. Rxf4 {[%clk 0:01:23.4]} 20... Be6 {[%clk 0:02:02.7]} 21.
Nb3 {[%clk 0:01:22.5]} 21... Bd6 {[%clk 0:02:02.3]} 22. Rh4 {[%clk 0:01:22.6]}
22... Ne5 {[%clk 0:02:01.6]} 23. Be2 {[%clk 0:01:22.9]} 23... Rdf8 {[%clk
0:01:56.2]} 24. Nd4 {[%clk 0:01:22]} 24... Bd7 {[%clk 0:01:56.1]} 25. f4 {[%clk
0:01:22.3]} 25... Ng6 {[%clk 0:01:53.5]} 26. Rh1 {[%clk 0:01:21.2]} 26... Re8
{[%clk 0:01:53.1]} 27. Kd2 {[%clk 0:01:20.9]} 27... Ne7 {[%clk 0:01:45.3]} 28.
Bf3 {[%clk 0:01:19.2]} 28... h6 {[%clk 0:01:39.3]} 29. Rh5 {[%clk 0:01:18.4]}
29... g6 {[%clk 0:01:34]} 30. Rh2 {[%clk 0:01:16]} 30... g5 {[%clk 0:01:34.3]}
31. g3 {[%clk 0:01:15.6]} 31... g4 {[%clk 0:01:31.4]} 32. Be2 {[%clk 0:01:15.1]}
32... Nf5 {[%clk 0:01:26.8]} 33. Nxf5 {[%clk 0:01:10.7]} 33... Bxf5 {[%clk
0:01:26.3]} 34. Rh5 {[%clk 0:01:11.6]} 34... Be4 {[%clk 0:01:18.2]} 35. Bxg4+
{[%clk 0:01:11.4]} 35... Kc7 {[%clk 0:01:18.2]} 36. Bf5 {[%clk 0:01:06.3]} 36...
Bf3 {[%clk 0:01:18]} 37. Rh2 {[%clk 0:01:04.4]} 37... Bc5 {[%clk 0:01:14.4]} 38.
Re1 {[%clk 0:01:04.7]} 38... h5 {[%clk 0:01:11.7]} 39. b4 {[%clk 0:00:48.8]}
39... Bb6 {[%clk 0:01:10.8]} 40. Rf2 {[%clk 0:00:47.8]} 40... Bg4 {[%clk
0:01:08.6]} 41. Bg6 {[%clk 0:00:48.2]} 41... Re7 {[%clk 0:00:59]} 42. f5 {[%clk
0:00:48.5]} 42... Rf8 {[%clk 0:00:53.2]} 43. Rf4 {[%clk 0:00:36.5]} 43... Rf6
{[%clk 0:00:44.3]} 44. a4 {[%clk 0:00:27.9]} 44... a5 {[%clk 0:00:43.1]} 45.
bxa5 {[%clk 0:00:27.8]} 45... Bxa5 {[%clk 0:00:43]} 46. Kc2 {[%clk 0:00:18.5]}
46... Bb6 {[%clk 0:00:38.2]} 47. Kd3 {[%clk 0:00:18.7]} 47... Re5 {[%clk
0:00:36.3]} 48. e4 {[%clk 0:00:12.2]} 48... dxe4+ {[%clk 0:00:34.9]} 49. Rexe4
{[%clk 0:00:13.1]} 49... Bxf5 {[%clk 0:00:20.6]} 50. Bxf5 {[%clk 0:00:10.1]}
50... Rfxf5 {[%clk 0:00:20.5]} 51. Rxf5 {[%clk 0:00:07.9]} 51... Rxf5 {[%clk
0:00:20.7]} 52. g4 {[%clk 0:00:08.5]} 52... hxg4 {[%clk 0:00:19.8]} 53. Rxg4
{[%clk 0:00:08.5]} 53... Ba5 {[%clk 0:00:20]} 54. Kc2 {[%clk 0:00:08.4]} 54...
Rf3 {[%clk 0:00:19.1]} 55. Rc4+ {[%clk 0:00:08.4]} 55... Kb6 {[%clk 0:00:19.4]}
56. Kb3 {[%clk 0:00:09.3]} 56... Rg3 {[%clk 0:00:19]} 57. Rc8 {[%clk 0:00:09.6]}
57... Ka7 {[%clk 0:00:18.7]} 58. Rc5 {[%clk 0:00:09.5]} 58... Bb6 {[%clk
0:00:18.8]} 59. Rc4 {[%clk 0:00:09.6]} 59... Bd8 {[%clk 0:00:18.6]} 60. Rc8
{[%clk 0:00:09.8]} 60... Bf6 {[%clk 0:00:18.4]} 61. Rc4 {[%clk 0:00:09.9]} 61...
Kb6 {[%clk 0:00:18.7]} 62. Rc8 {[%clk 0:00:09.7]} 62... Rh3 {[%clk 0:00:18]} 63.
Rc4 {[%clk 0:00:09.8]} 63... Rh8 {[%clk 0:00:17.7]} 64. Rf4 {[%clk 0:00:09.6]}
64... Be7 {[%clk 0:00:17.5]} 65. Re4 {[%clk 0:00:09.7]} 65... Bd6 {[%clk
0:00:17.5]} 66. Rd4 {[%clk 0:00:09.4]} 66... Kc6 {[%clk 0:00:17]} 67. Rc4+
{[%clk 0:00:09.7]} 67... Bc5 {[%clk 0:00:17.3]} 68. Rg4 {[%clk 0:00:10.1]} 68...
Rd8 {[%clk 0:00:16.5]} 69. Rg6+ {[%clk 0:00:10.4]} 69... Rd6 {[%clk 0:00:16.7]}
70. Rg4 {[%clk 0:00:10.6]} 70... Rh6 {[%clk 0:00:16.7]} 71. Kc4 {[%clk
0:00:10.2]} 71... Bd6 {[%clk 0:00:15.8]} 72. Re4 {[%clk 0:00:09.4]} 72... Rf6
{[%clk 0:00:15.5]} 73. Kb3 {[%clk 0:00:09.7]} 73... Rf4 {[%clk 0:00:15.7]} 74.
Re3 {[%clk 0:00:08.9]} 74... b6 {[%clk 0:00:15.8]} 75. Rh3 {[%clk 0:00:09.3]}
75... Bc5 {[%clk 0:00:16.2]} 76. Rd3 {[%clk 0:00:09.2]} 76... Re4 {[%clk
0:00:15.8]} 77. Rh3 {[%clk 0:00:09.6]} 77... Re3 {[%clk 0:00:16.2]} 78. Rh4
{[%clk 0:00:10]} 78... Kd5 {[%clk 0:00:16.4]} 79. Rh5+ {[%clk 0:00:09.8]} 79...
Re5 {[%clk 0:00:16.3]} 80. Rh4 {[%clk 0:00:09]} 80... Rg5 {[%clk 0:00:16.3]} 81.
Rh3 {[%clk 0:00:08]} 81... Ke4 {[%clk 0:00:15.9]} 82. Kc4 {[%clk 0:00:07.7]}
82... Be3 {[%clk 0:00:16.1]} 83. Rh4+ {[%clk 0:00:08]} 83... Kf3 {[%clk
0:00:16.5]} 84. Rh3+ {[%clk 0:00:08.2]} 84... Ke2 {[%clk 0:00:16.4]} 85. Rh2+
{[%clk 0:00:08.2]} 85... Bf2 {[%clk 0:00:16.8]} 86. Rh6 {[%clk 0:00:08.4]} 86...
Rc5+ {[%clk 0:00:16.8]} 87. Kb3 {[%clk 0:00:08.3]} 87... Be1 {[%clk 0:00:16.7]}
88. Re6+ {[%clk 0:00:05.6]} 88... Kd1 {[%clk 0:00:16.3]} 89. Rxb6 {[%clk
0:00:05.4]} 89... Rxc3+ {[%clk 0:00:16.1]} 90. Kb4 {[%clk 0:00:05.7]} 90... Rc8+
{[%clk 0:00:13.9]} 91. Kb5 {[%clk 0:00:05.5]} 91... Ra8 {[%clk 0:00:13.7]} 92.
Ra6 {[%clk 0:00:05.5]} 92... Rb8+ {[%clk 0:00:14.1]} 93. Rb6 {[%clk 0:00:05.9]}
93... Rh8 {[%clk 0:00:14.2]} 94. Rd6+ {[%clk 0:00:05.5]} 94... Kc2 {[%clk
0:00:13.7]} 95. Rc6+ {[%clk 0:00:05.4]} 95... Kb3 {[%clk 0:00:14]} 96. a5 {[%clk
0:00:05.9]} 96... Bf2 {[%clk 0:00:09.4]} 97. a6 {[%clk 0:00:05.3]} 97... Rh5+
{[%clk 0:00:09.1]} 0-1